[Event "Karel Janecek Open 2024"]
[Site "Prague"]
[Date "2024.03.06"]
[Round "8.12"]
[White "Abdilkhair, Abilmansur"]
[Black "Maksimovic, Bojan"]
[Result "1-0"]
[ECO "B07"]
[WhiteElo "2357"]
[BlackElo "2497"]
[Annotator "TA"]
[PlyCount "131"]
[EventDate "2024.02.22"]
[EventType "swiss"]
[EventCountry "CZE"]
[SourceTitle "playchess.com"]
[Source "ChessBase"]
[SourceQuality "1"]
[TimeControl "40/5400+30:1800+30"]

{[%evp 23,131,19,7,-67,-72,-158,-33,-8,-15,-18,-8,-54,-15,-10,-10,-10,0,0,10,0,9,0,0,0,7,0,6,0,8,0,14,12,10,10,10,0,0,0,0,0,0,0,0,0,0,0,68,68,68,68,110,110,110,110,110,110,232,110,154,162,160,68,378,378,378,235,1427,1310,1497,1534,1551,1440,1551,1525,1288,1250,1164,705,968,0,1050,0,1352,1231,1165,1125,29961,29961,29955,29963,29960,29962,29957,29959,29963,29965,29965,29966,29967,29968,29968,29969,29969,29971,29976,29973,29974,29972,29969,29966]} 1. e4 {[%emt 0:00:04]} d6 {[%emt 0:01:33]} 2. d4 {[%emt 0:00:11]} Nf6 {[%emt 0:00:11]} 3. Nc3 {[%emt 0:00:13]} Nbd7 {[%emt 0:00:14]} 4. f4 {[%emt 0:06:37]} e5 {[%emt 0:00:33]} 5. Nf3 {[%emt 0:00:52]} exd4 {[%emt 0:00:20]} 6. Qxd4 {[%emt 0:00:31]} c6 {[%emt 0:00:57]} 7. e5 {[%emt 0:09:05]} dxe5 {[%emt 0:02:52]} 8. fxe5 {[%emt 0:02:14]} Bc5 {[%emt 0:10:00] B07: Pirc Defence: Miscellaneous Systems.} 9. Qh4 {[%emt 0:05:29]} Qe7 {[%emt 0:03:43]} 10. Bf4 {[%emt 0:02:11]} Bb4 {[%emt 0:08:49]} 11. O-O-O {[%emt 0:13:14]} Bxc3 {[%emt 0:01:58]} 12. exf6 {[%emt 0:00:09]} Bxf6 {[%emt 0:00:56]} 13. Qf2 $146 {[%emt 0:03:09]} (13. Qg3 $1 $11 O-O 14. Bd3) ({Predecessor:} 13. Bg5 O-O 14. Re1 Qc5 15. Bc4 b5 16. Bb3 a5 17. a3 a4 18. Ba2 h6 19. Bxf6 Nxf6 {½-½ Klovans,J (2492)-Schmaltz,R (2508) Leinfelden Schachtage op 2nd 2000 (4)}) 13... Bxb2+ {[%emt 0:11:36]} 14. Kb1 {[%emt 0:00:06] [#]} (14. Kxb2 $142 Qb4+ 15. Ka1 Qxf4 16. Qe1+ Kf8 17. Bd3) 14... O-O {[%emt 0:00:32]} (14... Nb6 $1 $17 {[%cal Oc8e6] Threatens to win with ...Be6!} 15. Qg3 (15. Bd6 Qf6 $17) 15... Bf6) 15. Bd6 $1 $15 {[%emt 0:01:48]} Qf6 $1 {[%emt 0:00:11]} 16. Bxf8 {[%emt 0:16:22]} Nxf8 {[%emt 0:01:06]} 17. Qe3 $1 {[%emt 0:07:00]} Be6 {[%emt 0:07:15]} 18. Nd4 $1 {[%emt 0:01:02]} Bxd4 {[%emt 0:00:34]} 19. Qxd4 {[%emt 0:00:09]} Qxd4 {[%emt 0:19:00]} (19... Qg5 {feels hotter.} 20. Bc4 Bxc4 21. Qxc4 Qxg2 22. Rhe1 b5) 20. Rxd4 {[%emt 0:00:03]} Ng6 {[%emt 0:01:43]} 21. Be2 {[%emt 0:00:35]} Kf8 {[%emt 0:02:03]} 22. Re1 {[%emt 0:04:19]} Ne5 {[%emt 0:02:32]} 23. Bd3 {[%emt 0:03:08]} Nxd3 {[%emt 0:00:33]} 24. Rxd3 {[%emt 0:00:12]} Ke7 {[%emt 0:00:47]} 25. a4 {[%emt 0:00:22]} a5 {[%emt 0:02:29]} 26. c4 {[%emt 0:00:47]} c5 {[%emt 0:04:49]} 27. Kc2 {[%emt 0:00:28]} b6 {[%emt 0:01:36]} 28. Kc3 {[%emt 0:01:48]} Rd8 {[%emt 0:03:30]} 29. Rd5 {[%emt 0:00:09]} Rd6 {[%emt 0:00:26]} 30. h4 {[%emt 0:00:01]} Kd7 {[%emt 0:00:51]} 31. Rxd6+ {[%emt 0:00:19]} Kxd6 {[%emt 0:00:05]} 32. Rd1+ {[%emt 0:01:43]} Kc7 {[%emt 0:00:14]} 33. h5 {[%emt 0:00:24]} h6 {[%emt 0:00:13]} 34. Rd3 {[%emt 0:00:23]} g6 {[%emt 0:05:37]} (34... g5 $11) 35. Rf3 $1 $14 {[%emt 0:00:33]} gxh5 {[%emt 0:01:53]} 36. Rf6 {[%emt 0:00:00]} Kb7 {[%emt 0:01:23]} 37. Rxh6 {[%emt 0:01:06]} Bd7 {[%emt 0:00:55]} 38. Rxh5 {[%emt 0:03:12]} Kc7 {[%emt 0:03:01]} 39. Rh8 {[%emt 0:01:34]} Be6 {[%emt 0:00:27]} (39... f5 $16 {was necessary.}) 40. Rg8 {[%emt 0:00:16]} (40. Rh6 $18) 40... Kd6 {[%emt 0:00:12]} 41. Rg7 {[%emt 0:30:51]} Ke7 {[%emt 0:30:36]} 42. g4 {[%emt 0:01:25]} ({Better is} 42. Rh7 $16) 42... Kd6 $2 {[%emt 0:00:00][%mdl 8192] [#]} ({Black should play} 42... Kf8 $1 $14 43. Rg5 f6) 43. g5 $1 $18 {[%emt 0:00:00]} Ke5 {[%emt 0:00:00] [#]} 44. Rh7 $1 {[%emt 0:00:00]} Kd6 $2 {[%emt 0:00:00]} (44... Kf4 45. Rh8 Kxg5) 45. Rh6 $18 {[%emt 0:00:00]} Ke5 {[%emt 0:00:00]} 46. Rf6 {[%emt 0:00:00]} Kd6 {[%emt 0:00:00]} 47. Kc2 {[%emt 0:00:00]} Ke5 {[%emt 0:00:00]} 48. Kd3 {[%emt 0:00:00]} Bf5+ {[%emt 0:00:00]} 49. Kc3 {[%emt 0:00:00]} Be6 {[%emt 0:00:00]} 50. Kb3 {[%emt 0:00:00]} Kd6 {[%emt 0:00:00]} 51. Kc2 {[%emt 0:00:00]} Ke5 {[%emt 0:00:00]} 52. Kc3 {[%emt 0:00:00]} Kd6 {[%emt 0:00:00]} 53. Kd3 {[%emt 0:00:00]} Ke5 {[%emt 0:00:00]} 54. Ke3 {[%emt 0:00:00]} Bxc4 {[%emt 0:00:00]} 55. Rxb6 {[%emt 0:00:00]} Kd5 {[%emt 0:00:00]} 56. Rf6 {[%emt 0:00:00]} Ke5 {[%emt 0:00:00]} 57. Rc6 {[%emt 0:00:00]} Kd5 {[%emt 0:00:00]} 58. Rc7 {[%emt 0:00:00]} Kd6 {[%emt 0:00:00]} 59. Ra7 {[%emt 0:00:00]} Kc6 {[%emt 0:00:00]} 60. Rxa5 {[%emt 0:00:00]} Kb6 {[%emt 0:00:00]} 61. Ra8 {[%emt 0:00:00]} Kb7 {[%emt 0:00:00]} 62. Re8 {[%emt 0:00:00]} Kb6 {[%emt 0:00:00]} 63. Kd2 {[%emt 0:00:00]} Ba2 {[%emt 0:00:00]} 64. Kc3 {[%emt 0:00:00]} Ka5 {[%emt 0:00:00]} 65. Rc8 {[%emt 0:00:00]} Kb6 {[%emt 0:00:00]} 66. a5+ {[%emt 0:00:00]} 1-0

[Event "Karel Janecek Open 2024"]
[Site "Prague"]
[Date "2024.03.06"]
[Round "8.13"]
[White "Kusa, Jakub"]
[Black "Quintiliano, Renato R."]
[Result "1/2-1/2"]
[ECO "A49"]
[WhiteElo "2350"]
[BlackElo "2493"]
[Annotator "TA"]
[PlyCount "158"]
[EventDate "2024.02.22"]
[EventType "swiss"]
[EventCountry "CZE"]
[SourceTitle "playchess.com"]
[Source "ChessBase"]
[SourceQuality "1"]
[TimeControl "40/5400+30:1800+30"]

{[%evp 85,158,0,40,0,0,0,0,0,0,0,0,0,0,0,8,8,8,8,8,8,8,8,77,77,77,77,77,27,27,27,27,8,8,8,8,8,8,8,8,8,8,8,8,0,8,0,8,8,8,8,8,8,8,8,8,8,8,8,8,8,8,8,8,8,8,8,8,8,8,8,8,8,8,8,8]} 1. d4 {[%emt 0:00:03]} Nf6 {[%emt 0:00:09]} 2. Nf3 {[%emt 0:00:10]} g6 {[%emt 0:00:06]} 3. g3 {[%emt 0:00:40]} Bg7 {[%emt 0:00:08]} 4. Bg2 {[%emt 0:00:08]} O-O {[%emt 0:00:20]} 5. O-O {[%emt 0:00:15]} d6 {[%emt 0:00:19]} 6. b3 {[%emt 0:00:40]} e5 {[%emt 0:00:21]} 7. dxe5 {[%emt 0:00:24]} dxe5 {[%emt 0:00:08]} 8. Ba3 {[%emt 0:01:01]} e4 $1 {[%emt 0:00:07][%mdl 4] punktet besser als das ältere 8...Qxd1. A49: Königsindisch (ohne c2-c4).} 9. Bxf8 {[%emt 0:03:53]} Qxf8 {[%emt 0:00:07]} 10. Nd4 {[%emt 0:05:49]} e3 {[%emt 0:00:07]} 11. Nc3 {[%emt 0:11:17]} Ng4 {[%emt 0:13:58]} 12. Qd3 {[%emt 0:03:31]} c5 $146 {[%emt 0:08:57]} ({Predecessor:} 12... exf2+ 13. Kh1 Na6 14. Rad1 c6 15. h3 Nc5 16. Qf3 Bd7 17. b4 Re8 18. e4 Na6 {1-0 Paragua,M (2513)-Kovalev,V (2648) Online Olym Div2 A rapid 2020 (4.1)}) 13. Ndb5 {[%emt 0:01:32]} Bf5 {[%emt 0:02:09]} 14. Be4 {[%emt 0:20:56]} Nxf2 {[%emt 0:06:57]} 15. Qd5 {[%emt 0:01:03]} Nxe4 {[%emt 0:18:34]} 16. Nxe4 {[%emt 0:01:14]} Nc6 {[%emt 0:19:58]} 17. Rad1 {[%emt 0:02:19]} Rd8 {[%emt 0:00:26]} 18. Qc4 {[%emt 0:01:51]} Ne5 {[%emt 0:00:32]} 19. Qa4 {[%emt 0:04:48]} Nf3+ {[%emt 0:01:21]} 20. exf3 {[%emt 0:04:29]} e2 {[%emt 0:00:06]} 21. Rxd8 {[%emt 0:01:44]} exf1=Q+ {[%emt 0:00:09]} 22. Kxf1 {[%emt 0:00:08]} Qxd8 {[%emt 0:00:07]} 23. Ke2 {[%emt 0:01:28]} Bd7 {[%emt 0:03:52]} 24. Qc4 {[%emt 0:01:48]} b6 {[%emt 0:03:57]} 25. Nbd6 {[%emt 0:03:32]} Be6 {[%emt 0:00:07]} 26. Qb5 {[%emt 0:02:00]} Bd7 {[%emt 0:02:53]} 27. Qc4 {[%emt 0:00:15]} Qe7 {[%emt 0:00:16]} 28. Qd5 {[%emt 0:02:08]} Bf8 {[%emt 0:00:21]} 29. Nc4 {[%emt 0:06:31]} Be6 {[%emt 0:01:18]} 30. Qg5 {[%emt 0:00:07]} Qxg5 {[%emt 0:04:41]} 31. Nxg5 {[%emt 0:00:06]} Bd7 {[%emt 0:00:10]} 32. Ne4 {[%emt 0:00:36]} Be7 {[%emt 0:00:09]} 33. Ne3 {[%emt 0:00:42]} Bc6 {[%emt 0:01:05]} 34. c4 {[%emt 0:00:31]} f5 {[%emt 0:01:53]} 35. Nc3 {[%emt 0:00:13]} Kf7 {[%emt 0:04:23]} 36. Ned5 {[%emt 0:01:39]} Bd6 {[%emt 0:01:38]} 37. f4 {[%emt 0:01:30]} Ke6 {[%emt 0:00:36]} 38. a4 {[%emt 0:01:52]} Bf8 {[%emt 0:03:19]} 39. Nb5 {[%emt 0:01:35]} a6 {[%emt 0:01:34]} 40. Nbc7+ {[%emt 0:02:50]} Kd6 {[%emt 0:00:19]} 41. Nxa6 {[%emt 0:31:09]} Bxd5 {[%emt 0:30:08]} 42. cxd5 {[%emt 0:00:06]} Kxd5 {[%emt 0:00:00]} 43. Nc7+ {[%emt 0:00:00]} Ke4 {[%emt 0:00:00]} 44. Nb5 {[%emt 0:00:00]} c4 {[%emt 0:00:00]} 45. bxc4 {[%emt 0:00:00]} Bc5 {[%emt 0:00:00]} 46. h3 {[%emt 0:00:00]} Bb4 {[%emt 0:00:00]} 47. Nc7 {[%emt 0:00:00]} Kd4 {[%emt 0:00:00]} 48. Nd5 {[%emt 0:00:00]} Bc5 {[%emt 0:00:00]} 49. Nf6 {[%emt 0:00:00]} Kxc4 {[%emt 0:00:00]} 50. Nxh7 {[%emt 0:00:00]} Kb4 {[%emt 0:00:00]} 51. Nf6 {[%emt 0:00:00]} Kxa4 {[%emt 0:00:00]} 52. Nd7 {[%emt 0:00:00]} Bd4 {[%emt 0:00:00]} 53. Kd3 {[%emt 0:00:00]} Bg7 {[%emt 0:00:35]} (53... Bf2 $11 {bleibt in der Remisbreite.}) 54. Nxb6+ $16 {[%emt 0:00:00]} Kb5 {[%emt 0:00:02]} 55. Nd5 {[%emt 0:00:00]} Bf8 {[%emt 0:00:02]} 56. h4 {[%emt 0:00:00]} (56. Kd4 $16 {Droht Ke5 und aus.} Bg7+ 57. Kd3) 56... Kc5 {[%emt 0:05:21]} 57. Ne3 {[%emt 0:00:00]} Kd6 {[%emt 0:00:05]} 58. h5 {[%emt 0:00:00]} gxh5 {[%emt 0:00:03]} 59. Nxf5+ {[%emt 0:00:00]} Ke6 {[%emt 0:00:06]} 60. Ke4 {[%emt 0:00:00]} Kf6 {[%emt 0:00:05]} 61. Ne3 {[%emt 0:00:00]} Bd6 {[%emt 0:00:05]} 62. Nd5+ {[%emt 0:02:32]} Kg6 {[%emt 0:00:37]} 63. Nc3 {[%emt 0:00:50]} Bb4 {[%emt 0:02:22]} 64. Nd5 {[%emt 0:01:28]} Bd6 {[%emt 0:00:25]} 65. Ne3 {[%emt 0:00:29]} Kf6 {[%emt 0:00:24]} 66. Ng2 {[%emt 0:00:59]} Bb4 {[%emt 0:00:20]} 67. Kf3 {[%emt 0:00:42]} Ba5 {[%emt 0:00:29]} 68. Ne3 {[%emt 0:00:10]} Be1 {[%emt 0:00:41]} 69. Kg2 {[%emt 0:00:29]} Bd2 {[%emt 0:00:44]} 70. Nc4 {[%emt 0:00:13]} Bc3 {[%emt 0:01:43]} 71. Kh3 {[%emt 0:00:20]} Kg6 {[%emt 0:00:35]} 72. Ne5+ {[%emt 0:00:22]} Kf5 {[%emt 0:00:39]} 73. Kh4 {[%emt 0:00:34]} Bd2 {[%emt 0:00:17]} 74. Nd3 {[%emt 0:00:26]} Ke4 {[%emt 0:00:13]} 75. Nc5+ {[%emt 0:00:58]} Kf5 {[%emt 0:00:07]} 76. Kxh5 {[%emt 0:00:33]} Bxf4 {[%emt 0:00:12]} 77. g4+ {[%emt 0:00:08]} Kf6 {[%emt 0:00:04]} 78. Ne4+ {[%emt 0:00:20]} Kf7 {[%emt 0:00:09]} 79. g5 {[%emt 0:00:07]} Bxg5 {[%emt 0:00:04]} 1/2-1/2

[Event "Karel Janecek Open 2024"]
[Site "Prague"]
[Date "2024.03.06"]
[Round "8.14"]
[White "Barbosa, Evandro Amorim"]
[Black "Jares, Michal"]
[Result "1-0"]
[ECO "B12"]
[WhiteElo "2491"]
[BlackElo "2314"]
[Annotator "TA"]
[PlyCount "63"]
[EventDate "2024.02.22"]
[EventType "swiss"]
[EventCountry "CZE"]
[SourceTitle "playchess.com"]
[Source "ChessBase"]
[SourceQuality "1"]
[TimeControl "40/5400+30:1800+30"]

{[%evp 9,63,9,10,9,16,0,6,10,17,6,14,-13,0,0,0,-2,22,37,29,40,19,23,157,136,156,160,152,126,120,109,183,177,195,168,312,160,331,222,541,537,639,637,636,629,877,928,910,904,911,909,1295,1294,1273,1272,1173,1120]} 1. e4 {[%emt 0:00:10]} c6 {[%emt 0:00:02]} 2. d4 {[%emt 0:00:42]} d5 {[%emt 0:00:04]} 3. e5 {[%emt 0:00:10]} Bf5 {[%emt 0:00:04]} 4. h4 {[%emt 0:01:11]} h5 {[%emt 0:00:04]} 5. Bd3 {[%emt 0:00:11]} Bxd3 {[%emt 0:00:05]} 6. Qxd3 {[%emt 0:00:06][%cal Oe5e6]} Qa5+ {[%emt 0:00:15]} 7. Nd2 {[%emt 0:00:11][%cal Oe5e6,Bb1d2,Bd2b3,Bb3c5][%mdl 32] Und jetzt e6! wäre schön.} e6 {[%emt 0:00:03]} 8. Ngf3 {[%emt 0:00:12] Die Stellung ist ausgeglichen.} Nh6 {[%emt 0:00:25]} 9. O-O {[%emt 0:00:09]} Nf5 {[%emt 0:00:04]} 10. a4 {[%emt 0:01:28]} Be7 {[%emt 0:01:04]} 11. Nb3 {[%emt 0:00:28]} Qa6 {[%emt 0:01:39]} 12. Qd1 {[%emt 0:00:12]} Nxh4 {[%emt 0:12:18]} 13. Nxh4 {[%emt 0:00:15]} Bxh4 {[%emt 0:00:04]} 14. Nc5 {[%emt 0:00:19]} Qb6 {[%emt 0:00:28]} 15. Ra3 $1 $36 {[%emt 0:00:19][%mdl 2048] Weiss hat Initiative.} Be7 {[%emt 0:16:57]} (15... Qc7 $1 $11 {bleibt in der Remisbreite.}) 16. Rb3 $16 {[%emt 0:03:21] Weiß steht aktiver.} Bxc5 {[%emt 0:01:34]} 17. Rxb6 {[%emt 0:02:01]} Bxb6 {[%emt 0:00:03]} 18. c3 {[%emt 0:02:59] Qb3 ist eine echte Drohung.} Nd7 {[%emt 0:01:13]} 19. Re1 {[%emt 0:07:23][%mdl 1024] Weiss hat starke Kompensation.} c5 {[%emt 0:05:41] [#]} (19... Bd8 $16 20. Qd3 h4) 20. a5 $1 {[%emt 0:02:16][%mdl 512]} Bc7 {[%emt 0:07:10]} (20... Bxa5 21. dxc5) 21. Qa4 {[%emt 0:01:35] Schwarz muss nun a6 beachten.} O-O-O {[%emt 0:01:54]} (21... cxd4 {kämpft weiter.} 22. cxd4 h4) 22. a6 {[%emt 0:10:48]} (22. Bg5 $18) 22... Bb6 $2 {[%emt 0:02:57]} (22... Nb6 $16 {war einen Versuch wert.} 23. Qb5 cxd4 24. cxd4 Kb8) 23. b3 {[%emt 0:01:43] Droht Ba3 und aus.} Rhe8 $2 {[%emt 0:01:18]} (23... cxd4 {ist zäher.} 24. cxd4 Nb8) 24. Ba3 $18 {[%emt 0:03:11] Weiß steht klar auf Gewinn.} Kb8 {[%emt 0:04:32]} 25. Qb5 {[%emt 0:03:49]} bxa6 {[%emt 0:04:23]} 26. Qc6 {[%emt 0:01:05]} Bc7 {[%emt 0:01:45]} 27. dxc5 {[%emt 0:04:27][%cal Bd4c5,Bc5c6,Bc6c7][%mdl 32]} Nxe5 {[%emt 0:25:22]} 28. Qxa6 {[%emt 0:00:08][%cal Oe1e5] [#] Und Rxe5! würde nun gewinnen.} Rc8 {[%emt 0:06:13]} 29. Kf1 {[%emt 0:00:10]} Ka8 {[%emt 0:03:51]} 30. c6 {[%emt 0:00:11]} Rb8 {[%emt 0:01:54] Gegen Qb7+ gerichtet.} 31. Bc5 {[%emt 0:00:09]} Bb6 {[%emt 0:00:28]} 32. c7 {[%emt 0:00:13] Gewichteter Fehlerwert: Weiß=0.26 (präzise) /Schwarz=0.66.  Verlustzug:     	---       	Schwarz=1     Fehler:       	Weiß=1     	Schwarz=4     Ungenau:       	Weiß=2     	---        OK:         	Weiß=5     	Schwarz=6     Bester:       	Weiß=2     	Schwarz=1     Stark:        	Weiß=1     	---} 1-0

[Event "Karel Janecek Open 2024"]
[Site "Prague"]
[Date "2024.03.06"]
[Round "8.15"]
[White "Chinguun, Sumiya"]
[Black "Simacek, Pavel"]
[Result "1-0"]
[ECO "B23"]
[WhiteElo "2319"]
[BlackElo "2456"]
[Annotator "TA"]
[PlyCount "105"]
[EventDate "2024.02.22"]
[EventType "swiss"]
[EventCountry "CZE"]
[SourceTitle "playchess.com"]
[Source "ChessBase"]
[SourceQuality "1"]
[TimeControl "40/5400+30:1800+30"]

{[%evp 11,105,-2,0,-6,20,31,28,30,32,35,43,22,45,47,59,51,67,14,23,13,9,9,8,12,47,52,50,51,52,52,52,44,51,51,56,55,68,64,75,57,56,46,47,45,108,108,108,114,114,116,121,121,132,132,130,139,139,131,145,145,145,145,145,145,145,145,855,725,1301,1137,1831,2597,5106,5057,7531,7531,12416,12416,7105,7104,7018,7018,5654,5435,29979,29980,29980,29981,29981,29982,29982,29983,29982,29983,29983,29984]} 1. e4 {[%emt 0:00:02]} c5 {[%emt 0:00:24]} 2. Nc3 {[%emt 0:00:13]} d6 {[%emt 0:00:27]} 3. f4 {[%emt 0:00:10]} g6 {[%emt 0:00:47]} 4. Nf3 {[%emt 0:00:14]} Bg7 {[%emt 0:00:16]} 5. Bc4 {[%emt 0:00:16]} Nc6 {[%emt 0:01:22]} 6. O-O {[%emt 0:00:09]} e6 {[%emt 0:00:30]} 7. d4 {[%emt 0:00:30]} Nxd4 {[%emt 0:04:27]} 8. Be3 {[%emt 0:00:07][%cal Rf3d4]} Nf6 {[%emt 0:13:51]} 9. Nxd4 {[%emt 0:02:46] White has an edge.} cxd4 {[%emt 0:00:04]} 10. Bxd4 {[%emt 0:00:10] Threatens to win with e5.} O-O {[%emt 0:04:13]} 11. Qd3 {[%emt 0:06:50]} Bd7 {[%emt 0:06:55]} 12. Rad1 {[%emt 0:21:53]} Bc6 {[%emt 0:08:28]} 13. f5 {[%emt 0:08:07]} Qe7 {[%emt 0:04:55]} 14. Bxf6 {[%emt 0:07:25]} ({White should play} 14. a4 $14) 14... Bxf6 $11 {[%emt 0:00:17]} 15. fxe6 {[%emt 0:00:07]} fxe6 {[%emt 0:00:48]} 16. Qxd6 {[%emt 0:00:19]} Rae8 {[%emt 0:02:43]} 17. e5 {[%emt 0:04:28]} Bg7 {[%emt 0:00:31]} 18. Rxf8+ {[%emt 0:03:35]} Bxf8 {[%emt 0:01:17] A strong pair of Bishops.} 19. Qxe7 {[%emt 0:03:44]} Rxe7 {[%emt 0:00:06]} 20. Ne2 {[%emt 0:01:11]} Bg7 {[%emt 0:03:06]} 21. Nf4 {[%emt 0:20:14]} Bxe5 {[%emt 0:06:53]} 22. Nxe6 {[%emt 0:00:50]} Kh8 {[%emt 0:00:08]} 23. c3 {[%emt 0:01:29]} h6 {[%emt 0:09:35]} 24. Rd8+ {[%emt 0:02:40]} Re8 {[%emt 0:05:37]} 25. Rxe8+ {[%emt 0:00:51]} Bxe8 $16 {[%emt 0:00:02][%mdl 4096] Endgame. KBB-KBN} 26. Nd8 {[%emt 0:01:49]} b6 {[%emt 0:11:24]} 27. Bf7 {[%emt 0:00:48]} Bf6 {[%emt 0:00:04]} ({Better is} 27... Bd7 $14) 28. Bxe8 {[%emt 0:00:08]} Bxd8 {[%emt 0:00:03]} 29. Bxg6 {[%emt 0:00:07] KB-KB} Bg5 {[%emt 0:00:03]} 30. Kf2 {[%emt 0:04:35]} Bc1 {[%emt 0:00:06]} 31. b3 {[%emt 0:00:08]} Bb2 {[%emt 0:00:04]} 32. c4 {[%emt 0:00:25]} Kg7 {[%emt 0:00:03]} 33. Be8 {[%emt 0:01:21]} Kf6 {[%emt 0:00:29]} 34. Kf3 {[%emt 0:02:34]} Ke5 {[%emt 0:01:56]} 35. Kg4 {[%emt 0:00:09]} Kf6 {[%emt 0:03:01]} 36. Kh5 {[%emt 0:00:23]} Kg7 {[%emt 0:00:10]} 37. h4 {[%emt 0:00:13]} Bc1 {[%emt 0:01:12]} 38. g4 {[%emt 0:00:09]} Kf6 $2 {[%emt 0:09:39][%mdl 8192] [#] Loses the game.} (38... Bd2 $16 39. g5 hxg5) 39. b4 $1 $18 {[%emt 0:00:10][%cal Bb3b4,Bb4c5,Bc5c6][%mdl 32]} Kg7 {[%emt 0:03:27]} 40. c5 {[%emt 0:00:14]} bxc5 {[%emt 0:00:33]} 41. bxc5 {[%emt 0:30:05]} Be3 {[%emt 0:01:23]} 42. c6 {[%emt 0:00:00] Intending c7 and mate.} Bf4 {[%emt 0:00:02]} 43. g5 {[%emt 0:00:00] [#] And now gxh6+ would win.} hxg5 {[%emt 0:00:06]} 44. hxg5 {[%emt 0:00:00]} Kf8 {[%emt 0:00:06]} 45. Bd7 {[%emt 0:00:00]} Ke7 {[%emt 0:03:29]} 46. Kg4 {[%emt 0:00:00]} Bd2 {[%emt 0:01:03]} 47. Kf5 {[%emt 0:00:00]} Ba5 {[%emt 0:01:21]} 48. Kg6 {[%emt 0:00:00] White mates.} Bd2 {[%emt 0:01:04]} 49. Bf5 {[%emt 0:00:00]} Kd6 {[%emt 0:02:06]} 50. Be4 {[%emt 0:00:00]} Ke7 {[%emt 0:00:09]} 51. Bc2 {[%emt 0:00:00]} Bf4 {[%emt 0:00:59]} 52. Ba4 {[%emt 0:00:00]} Kd6 {[%emt 0:00:45]} 53. Kf6 {[%emt 0:00:00] Weighted Error Value: White=0.05 (flawless) /Black=0.14 (very precise) .  Loses game:     	---       	Black=1      Mistake:       	White=1     	Black=1      Inaccurate:     	---       	Black=3      OK:         	White=16    	Black=10     Best:        	White=5     	Black=1      Strong:       	White=1     	---} 1-0